bitfinex/quotes_ETHUSD_20241106
["timestamp","ask_amount","ask_price","bid_price","bid_amount"]
[1730889373056,0.776,2622.8,2622.4,3.81321]
[1730889373257,0.776,2622.8,2622.3,3.81332]
[1730889373458,0.776,2622.8,2622.4,3.81318]
[1730889374281,0.776,2622.8,2622.5,3.81314]
[1730889375554,3.81257,2622.9,2622.5,3.81314]
[1730889375555,0.55,2623.0,2622.6,0.7677]
[1730889375758,0.817479,2622.9,2622.5,3.81314]
[1730889376650,0.7654,2622.8,2622.5,3.81314]
[1730889376854,0.7654,2622.8,2622.4,3.81329]
[1730889377179,0.7654,2622.8,2622.5,0.08514022]
[1730889377947,4.57821,2622.8,2622.5,0.08514022]
[1730889378158,1.7412279,2622.8,2622.5,0.08514022]
[1730889378360,1.7412279,2622.8,2622.4,7.6264]
[1730889378688,1.7412279,2622.8,2622.5,0.08514022]
[1730889378889,3.81288,2622.7,2622.5,0.08514022]
[1730889379049,4.36834079,2622.7,2622.2,4.63121]
[1730889379246,0.55541079,2622.7,2622.3,3.8986425]
[1730889379465,5.13663,2623.0,2622.5,3.81305]
[1730889379744,1.3241,2623.0,2622.6,0.08510909]
[1730889379947,1.3241,2623.0,2622.6,3.89799909]
[1730889380147,0.7741,2623.0,2622.6,3.89799909]
[1730889380584,0.7741,2623.0,2622.7,3.81274]
[1730889380746,0.7741,2623.0,2622.7,3.89781796]
[1730889380951,5.045171,2623.0,2622.7,0.08507796]
[1730889381300,5.045171,2623.0,2622.5,3.81314]
[1730889381488,5.045171,2623.0,2622.8,0.08504683]
[1730889381652,5.045171,2623.0,2622.5,3.81314]
[1730889381980,5.045171,2623.0,2622.6,0.08510909]
[1730889382193,3.81278,2622.8,2622.6,0.08510909]
[1730889382353,4.58696,2622.7,2622.2,3.81358]
[1730889382555,3.81207,2623.3,2622.7,3.89792813]
[1730889382860,4.5775,2623.2,2622.6,0.7933]
[1730889383185,4.5775,2623.2,2622.7,0.08486579]
[1730889383186,3.8123,2623.1,2622.7,0.08486579]
[1730889383388,0.55,2623.1,2622.7,0.08486579]
[1730889385445,4.3623,2623.1,2622.7,0.08486579]
[1730889385654,0.55,2623.1,2622.7,3.89771579]
[1730889386948,0.55,2623.1,2622.8,3.81271]
[1730889387147,0.7653,2623.2,2622.8,3.81265]
[1730889387362,0.7653,2623.2,2622.9,0.08479017]
[1730889387648,4.36215,2623.2,2622.9,0.08479017]
[1730889388015,4.36215,2623.2,2622.7,3.8128]
[1730889388349,4.62648,2623.1,2622.5,4.57562]
[1730889388651,4.62648,2623.1,2622.8,0.08484082]
[1730889388863,4.62648,2623.1,2622.9,0.08476804]
[1730889389265,4.62648,2623.1,2622.6,3.81292]
[1730889389425,8.43886,2623.1,2622.6,3.81292]
[1730889389761,5.17648,2623.1,2623.0,0.08472586]
[1730889389944,5.17648,2623.1,2622.6,3.81292]
[1730889390146,5.17648,2623.1,2623.0,0.08462418]
[1730889390358,5.17648,2623.1,2622.6,3.81292]
[1730889390825,1.3642,2623.1,2622.7,3.89762476]
[1730889391458,1.3642,2623.1,2622.7,0.08482476]
[1730889391659,14.29264121,2626.2,2622.7,0.08482476]
[1730889391660,0.7528,2624.0,2622.9,8.20260711]
[1730889391857,4.56387,2624.0,2623.4,3.81176]
[1730889392032,4.56387,2624.0,2623.5,3.89611473]
[1730889392238,0.7528,2624.0,2623.6,3.81149]
[1730889392677,0.1295275,2624.4,2623.7,0.08441874]
[1730889392874,0.1295275,2624.4,2624.0,3.81086]
[1730889393018,0.1295275,2624.4,2624.2,3.81058]
[1730889393223,0.1295275,2624.4,2624.3,3.81053]
[1730889393460,0.1295275,2624.4,2624.3,0.0838911]
[1730889394234,0.1295275,2624.4,2624.0,3.8109]
[1730889394433,0.1295275,2624.4,2623.2,3.81206]
[1730889394434,0.55,2623.8,2623.2,3.81206]
[1730889394641,5.18518,2623.8,2623.2,4.193266]
[1730889394835,1.3739,2623.8,2623.0,3.81234]
[1730889395039,3.81164,2623.6,2623.0,3.81234]
[1730889395335,3.81164,2623.6,2623.0,3.81233]
[1730889395736,7.62333,2623.6,2623.0,3.81233]
[1730889395940,4.36179,2623.5,2622.9,4.58147]
[1730889396141,0.55,2623.5,2623.0,3.81238]
[1730889396870,4.63524,2623.8,2623.2,0.7646]
[1730889397036,0.55,2623.7,2623.2,4.57661]
[1730889397236,0.55,2623.7,2623.3,3.88813168]
[1730889397582,3.81107,2624.0,2623.5,3.81165]
[1730889398480,3.81107,2624.0,2623.6,3.81153]
[1730889399229,4.61073,2624.1,2623.6,3.81153]
[1730889399471,0.1295275,2624.4,2623.7,0.7641]
[1730889399783,0.1295275,2624.4,2624.2,0.7641]
[1730889399961,0.1295275,2624.4,2624.2,4.57464]
[1730889400472,0.1295275,2624.4,2623.9,0.825]
[1730889400635,0.1295275,2624.4,2623.7,7.63638]
[1730889400636,3.9400075,2624.4,2623.7,7.63638]
[1730889400827,4.6389,2624.2,2623.7,4.63638]
[1730889401030,8.44967,2624.2,2623.7,4.63638]
[1730889401327,4.6389,2624.2,2623.7,4.63638]
[1730889401533,8.4497,2624.2,2623.7,4.63638]
[1730889401843,3.81084,2624.1,2623.7,0.825]
[1730889402041,8.44971,2624.2,2623.7,4.63631]
[1730889402235,4.6389,2624.2,2623.7,4.63631]
[1730889402634,4.6389,2624.2,2623.8,3.81126]
[1730889403079,4.6389,2624.2,2623.7,4.63631]
[1730889403234,8.44967,2624.2,2623.7,4.63629]
[1730889403434,4.6389,2624.2,2623.7,4.63629]
[1730889403875,4.6389,2624.2,2623.7,5.481079]
[1730889404497,8.44968,2624.2,2623.7,5.481079]
[1730889404788,3.81079,2624.2,2623.7,3.8113]
[1730889404994,3.9400275,2624.4,2623.8,3.81124]
[1730889405152,3.81081,2624.2,2623.7,3.81131]
[1730889405351,3.81081,2624.2,2623.7,4.270041]
[1730889405594,3.81081,2624.2,2623.8,3.81125]
[1730889405799,4.36054,2624.3,2623.8,3.8112]
[1730889405993,4.36054,2624.3,2623.9,3.81112]
[1730889406197,3.81054,2624.3,2624.0,0.776]
[1730889407196,0.1295275,2624.4,2624.1,0.08315788]
[1730889407492,3.9399275,2624.4,2624.1,0.08315788]
[1730889408360,0.1295275,2624.4,2624.1,4.36861378]
[1730889408557,0.1295275,2624.4,2624.1,0.55780378]
[1730889409907,0.1295275,2624.4,2624.2,3.81066]
[1730889410096,0.1295275,2624.4,2624.3,0.08309569]
[1730889410272,0.1295275,2624.4,2624.1,4.2854659]
[1730889410460,0.1295275,2624.4,2624.2,0.58927338]
[1730889411070,0.1295275,2624.4,2624.3,4.56733]
[1730889411270,0.1295275,2624.4,2624.3,4.65042569]
[1730889414374,0.1295275,2624.4,2624.3,7.65042569]
[1730889416710,0.1295275,2624.4,2624.3,7.72661494]
[1730889417306,0.1295275,2624.4,2624.3,7.65042569]
[1730889417479,0.1295275,2624.4,2624.3,9.23450597]
[1730889421803,0.1295275,2624.4,2624.3,9.35974831]
[1730889422181,0.00619872,2625.1,2625.0,6.80952]
[1730889422385,0.00619872,2625.1,2625.0,7.65708562]
[1730889422667,0.00619872,2625.1,2625.0,9.63759514]
[1730889422824,0.00619872,2625.1,2625.0,9.62759514]
[1730889423513,0.00619872,2625.1,2625.0,5.85619514]
[1730889423702,0.00619872,2625.1,2625.0,3.89157087]
[1730889423875,5.16416872,2625.1,2625.0,0.08205087]
[1730889424074,4.36556872,2625.1,2623.9,3.81104]
[1730889424306,0.7986,2624.6,2624.0,3.88769397]
[1730889424512,0.7986,2624.6,2624.1,3.81073]
[1730889424711,4.60878,2624.6,2624.2,0.07668178]
[1730889424880,4.60878,2624.6,2624.1,3.8108]
[1730889425081,4.60878,2624.6,2624.0,3.81095]
[1730889425082,0.7986,2624.6,2624.2,3.88734178]
[1730889425318,0.7986,2624.6,2624.2,0.07668178]
[1730889425491,0.7986,2624.6,2624.1,6.81082]
[1730889425678,4.60879,2624.6,2624.2,0.07668178]
[1730889425879,3.81027,2624.5,2624.2,0.07668178]
[1730889426080,7.62059,2624.5,2624.2,0.07668178]
[1730889426282,3.81027,2624.5,2624.2,0.07668178]
[1730889426491,3.81027,2624.5,2623.9,6.81104]
[1730889426704,3.81027,2624.5,2624.0,3.88760397]
[1730889427398,3.81027,2624.5,2624.0,0.07674397]
[1730889427602,3.81027,2624.5,2624.1,3.81081]
[1730889427802,3.81027,2624.5,2624.0,3.88771397]
[1730889428005,3.81027,2624.5,2624.2,0.07668178]
[1730889428194,3.81027,2624.5,2624.1,0.07671287]
[1730889428397,0.7986,2624.6,2624.3,0.07665069]
[1730889428631,0.7986,2624.6,2624.3,3.81051]
[1730889428833,0.7986,2624.6,2624.4,0.07653244]
[1730889429310,4.60877,2624.6,2624.4,0.07653244]
[1730889429516,4.60877,2624.6,2624.1,7.62151]
[1730889429833,4.60877,2624.6,2624.5,0.07648504]
[1730889430030,4.60877,2624.6,2624.1,3.81075]
[1730889430331,0.7986,2624.6,2624.3,3.81045]
[1730889430823,0.7986,2624.6,2624.4,0.07660982]
[1730889430989,4.36024,2624.5,2624.4,0.07660982]
[1730889431188,3.81085,2624.1,2623.6,3.81151]
[1730889431396,8.39117,2624.1,2623.6,3.81151]
[1730889431590,4.58025,2624.1,2623.7,0.07697378]
[1730889431822,5.038275,2624.1,2623.7,0.07697378]
[1730889432044,3.81112,2623.9,2623.4,3.81171]
[1730889432331,3.81126,2623.8,2623.3,3.81184]
[1730889432631,3.81126,2623.8,2623.5,0.07715254]
[1730889432833,3.81126,2623.8,2623.4,0.07729835]
[1730889433028,3.81141,2623.7,2623.6,0.07723613]
[1730889433234,3.81141,2623.7,2623.5,0.07726724]
[1730889433434,3.81141,2623.7,2623.6,0.07723613]
[1730889433731,0.55,2624.0,2623.3,3.88818994]
[1730889433951,0.55,2624.0,2623.6,0.07790435]
[1730889433952,3.81134,2623.8,2623.6,0.07790435]
[1730889434124,3.81134,2623.8,2623.3,3.88818994]
[1730889434458,0.55,2623.8,2623.4,3.88979657]
[1730889434859,0.55,2623.9,2623.4,0.07796657]
[1730889435175,1.1088485,2623.9,2623.5,3.81168]
[1730889435320,4.9200685,2623.9,2623.4,0.07796657]
[1730889435505,3.81128,2623.8,2623.4,0.07796657]
[1730889435706,7.62263,2623.8,2623.4,0.07796657]
[1730889435908,4.68442785,2623.8,2623.4,0.07796657]
[1730889436143,4.68442785,2623.8,2623.4,3.81184]
[1730889436348,4.68442785,2623.8,2623.5,0.07793546]
[1730889437032,4.68442785,2623.8,2623.3,3.88813998]
[1730889437352,4.68442785,2623.8,2623.3,3.81191]
[1730889437649,4.68442785,2623.8,2623.4,0.07799426]
[1730889437844,8.49582785,2623.8,2623.4,0.07799426]
[1730889438147,4.3617,2623.5,2623.4,0.07799426]
[1730889438549,0.55,2623.5,2622.7,3.81277]
[1730889438725,3.81211,2623.3,2622.7,7.62555]
[1730889439043,0.55,2623.4,2623.0,3.81239]
[1730889439249,3.81179,2623.5,2623.0,3.81239]
[1730889439410,4.60236,2623.6,2623.1,3.96159133]
[1730889439755,8.41403,2623.6,2623.1,3.88534713]
[1730889439909,3.81198,2623.4,2623.1,0.07306713]
[1730889440110,4.327258,2623.4,2622.9,3.81246]
[1730889440350,4.327258,2623.4,2623.0,0.07278406]
[1730889440549,3.81199,2623.3,2623.0,0.07278406]
[1730889440728,4.327128,2623.4,2623.0,0.07278406]
[1730889441349,0.515278,2623.4,2623.0,3.88518406]
[1730889441578,0.55,2623.5,2623.1,3.8122]
[1730889441764,4.36176,2623.5,2623.0,3.88519406]
[1730889442091,3.81185,2623.4,2623.2,0.07275346]
[1730889442289,4.36176,2623.5,2623.1,0.07278063]
[1730889442468,4.36176,2623.5,2623.3,0.07271839]
[1730889442653,0.515256,2623.4,2623.2,0.07274951]
[1730889442859,4.327116,2623.4,2623.0,3.81241]
[1730889443951,4.327116,2623.4,2622.8,3.8126]
[1730889444157,0.515256,2623.4,2623.0,3.81233]
[1730889444479,3.81221,2623.2,2622.7,3.81279]
[1730889444678,4.2449566,2623.2,2622.7,3.81286]
[1730889445085,0.4327466,2623.2,2622.8,3.81264]
[1730889445245,0.4327466,2623.2,2622.7,3.81286]
[1730889445246,4.2448866,2623.2,2622.7,3.81286]
[1730889445449,8.0571366,2623.2,2622.7,3.81286]
[1730889445666,4.2448866,2623.2,2622.7,3.81286]
[1730889446081,4.2448866,2623.2,2622.7,3.81278]
[1730889446391,3.81228,2623.1,2622.7,3.81278]
[1730889446695,3.81228,2623.1,2622.8,3.0]
[1730889446844,4.2448866,2623.2,2622.8,3.0]
[1730889447345,0.55708866,2623.1,2622.8,3.0]
[1730889447788,4.36942866,2623.1,2622.8,3.0]
[1730889448284,4.36942866,2623.1,2622.7,3.81278]
[1730889449181,3.81243,2623.0,2622.5,3.81306]
[1730889449385,4.63728,2622.9,2622.5,3.81306]
[1730889449763,4.63728,2622.9,2622.4,3.81329]
[1730889449951,0.8247,2622.9,2622.6,3.81293]
[1730889450341,4.63728,2622.9,2622.4,3.8132]
[1730889450575,0.8247,2622.9,2622.5,3.81313]
[1730889450750,0.8247,2622.9,2622.6,3.81292]
[1730889451146,5.18946866,2623.1,2622.6,7.62585]
[1730889451546,5.18946866,2623.1,2622.6,3.81292]
[1730889452000,0.51894687,2623.0,2622.4,3.81317]
[1730889452165,3.81268,2622.9,2622.7,0.07322356]
[1730889452368,3.813,2622.7,2622.1,7.6273]
[1730889452890,0.55,2622.6,2622.1,7.6273]
[1730889453187,0.55,2622.6,2622.0,2.0]
[1730889453347,0.55,2622.7,2622.3,3.8134]
[1730889453547,4.36289,2622.7,2622.3,3.8134]
[1730889453752,0.55,2622.7,2622.3,3.8134]
[1730889453992,0.00619872,2622.4,2622.3,3.8134]
[1730889455880,0.00619872,2622.4,2622.0,5.0]
[1730889456085,0.00619872,2622.4,2622.0,5.8138]
[1730889456086,0.8267,2622.3,2622.0,5.8138]
[1730889456584,0.8267,2622.3,2622.0,9.62761]
[1730889456761,0.8267,2622.3,2622.0,5.8138]
[1730889456957,0.8267,2622.3,2622.0,9.6276]
[1730889457162,0.8267,2622.3,2622.1,3.81366]
[1730889457394,0.8267,2622.3,2622.2,3.81359]
[1730889457603,0.8267,2622.3,2622.1,3.81373]
[1730889457902,0.8267,2622.3,2622.0,9.6276]
[1730889458063,0.8267,2622.3,2622.0,5.8138]
[1730889458262,1.29131187,2622.3,2622.0,2.0]
[1730889458495,1.29131187,2622.3,2622.0,5.81387]
[1730889460262,1.29131187,2622.3,2622.1,3.81372]
[1730889460710,0.8267,2622.3,2622.0,5.81387]
[1730889460916,0.00619872,2622.4,2622.3,3.81344]
[1730889463312,0.83029872,2622.4,2622.1,3.81364]
[1730889463469,0.83029872,2622.4,2622.2,3.81358]
[1730889463816,0.83029872,2622.4,2622.2,3.81357]
[1730889464017,1.34962959,2622.4,2622.0,5.81385]
[1730889464219,5.16301959,2622.4,2622.0,2.0]
[1730889464383,5.16301959,2622.4,2622.0,5.81386]
[1730889465318,5.16301959,2622.4,2622.0,2.0]
[1730889465319,5.14063,2622.1,2622.0,2.0]
[1730889465521,6.036059,2622.1,2622.0,2.0]
[1730889465822,2.222329,2622.1,2622.0,2.0]
[1730889466177,6.036059,2622.1,2622.0,2.06898901]
[1730889466379,2.222329,2622.1,2622.0,2.06898901]
[1730889466620,6.036059,2622.1,2622.0,2.0]
[1730889466803,6.036059,2622.1,2622.0,2.06433162]
[1730889467783,2.222329,2622.1,2622.0,2.06433162]
[1730889467981,1.3269,2622.1,2622.0,2.06433162]
[1730889468324,0.7769,2622.1,2622.0,2.06433162]
[1730889469621,5.14063,2622.1,2622.0,2.06433162]
[1730889470292,3.14063,2622.1,2622.0,0.06433162]
[1730889470818,3.81428,2621.8,2621.2,4.62882]
[1730889471020,3.81426,2621.8,2621.3,3.81481]
[1730889471915,3.81418,2621.8,2621.4,3.81468]
[1730889472822,3.81418,2621.8,2621.2,3.81503]
[1730889472981,3.81418,2621.8,2621.2,4.196443]
[1730889473183,0.814,2621.7,2621.4,3.81474]
[1730889473883,0.814,2621.7,2621.4,3.81464]
[1730889474517,0.814,2621.7,2621.3,3.81489]
[1730889474909,0.814,2621.7,2621.4,3.81475]
[1730889475272,0.814,2621.7,2621.2,0.381503]
[1730889475431,0.814,2621.7,2621.3,3.8149]
[1730889475588,0.814,2621.7,2621.4,4.2343103]
[1730889475792,0.814,2621.7,2621.5,3.81459]
[1730889476011,0.814,2621.7,2621.4,4.2343803]
[1730889476722,0.814,2621.7,2621.5,3.8146]
[1730889476929,0.7727,2621.9,2621.6,3.81446]
[1730889477102,0.7727,2621.9,2621.6,4.69841003]
[1730889478632,0.7727,2621.9,2621.5,3.8146]
[1730889479720,0.7727,2621.9,2621.5,3.81454]
[1730889480057,0.7727,2621.9,2621.5,7.62907]
[1730889480263,0.7727,2621.9,2621.6,3.81439]
[1730889480420,0.7727,2621.9,2621.7,3.81425]
[1730889480818,0.801,2622.4,2621.9,3.81395]
[1730889481162,0.801,2622.4,2622.0,3.81381]
[1730889481317,4.61432,2622.4,2621.9,3.81395]
[1730889481647,0.801,2622.4,2621.9,3.81393]
[1730889482218,0.7926,2622.2,2622.0,0.05856982]
[1730889482566,4.36373,2622.1,2621.4,8.42379]
[1730889482799,0.7926,2621.9,2621.7,3.81428]
[1730889483262,0.7926,2621.9,2621.8,0.05856083]
[1730889483473,4.60662,2621.9,2621.8,0.05856083]
[1730889483639,4.60662,2621.9,2621.4,3.81465]
[1730889484123,3.81421,2621.8,2621.5,0.05686261]
[1730889484324,3.81421,2621.8,2621.2,4.990873]
[1730889484525,3.81421,2621.8,2621.3,3.87175284]
[1730889484754,3.81431,2621.7,2621.3,0.05693284]
[1730889484956,3.81431,2621.7,2620.8,3.87277068]
[1730889484957,0.8056,2621.4,2620.9,0.7579]
[1730889485137,4.62044,2621.4,2620.8,3.87275068]
[1730889485523,4.62044,2621.4,2620.9,0.05705751]
[1730889485968,0.8056,2621.4,2620.9,3.87244751]
[1730889486259,0.8056,2621.4,2621.0,3.81526]
[1730889486679,0.8056,2621.4,2621.1,0.05699517]
[1730889487482,5.082401,2621.4,2621.1,0.05699517]
[1730889487861,4.365,2621.3,2620.8,0.05722068]
[1730889488179,4.3649,2621.3,2621.2,0.056964]
[1730889488377,4.3649,2621.3,2620.8,3.87282068]
[1730889488686,4.3649,2621.3,2620.9,0.05705751]
[1730889489359,0.55,2621.3,2620.9,0.05705751]
[1730889490399,0.55,2621.3,2620.9,3.87249751]
[1730889490685,0.55,2621.3,2620.9,0.05705751]
[1730889492164,4.36492,2621.3,2620.9,0.05705751]
[1730889492551,0.55,2621.3,2620.9,3.87244751]
[1730889493071,5.082441,2621.4,2620.9,3.87244751]
[1730889493072,4.62042,2621.4,2620.9,3.87244751]
[1730889493455,0.8056,2621.4,2621.0,3.81532]
[1730889493994,0.8056,2621.4,2621.1,0.05729176]
[1730889494290,1.649077,2621.4,2621.1,0.05729176]
[1730889494465,4.36504,2621.2,2621.1,0.05729176]
[1730889494787,0.8234,2621.1,2620.3,0.8136]
[1730889494959,0.8234,2620.6,2620.1,3.81664]
[1730889495164,0.8234,2620.6,2620.1,8.14308361]
[1730889495368,0.8234,2620.6,2620.1,8.14300361]
[1730889495672,0.8234,2620.6,2620.2,3.81649]
[1730889496362,0.8234,2620.6,2620.3,3.81634]
[1730889496663,0.8234,2620.6,2620.3,3.81627]
[1730889497193,0.8234,2620.6,2620.4,0.05738352]
[1730889498461,0.8234,2620.6,2620.2,3.8165]
[1730889498660,0.8234,2620.6,2620.5,0.05121693]
[1730889498987,4.6394,2620.6,2620.5,0.05720903]
[1730889499193,4.6394,2620.6,2620.0,4.28514612]
[1730889499194,4.36616,2620.5,2620.0,0.46849612]
[1730889499404,3.81623,2620.4,2620.0,0.46849612]
[1730889499556,1.348,2620.3,2620.0,0.46849612]
[1730889499754,0.798,2620.3,2620.0,0.46849612]
[1730889499954,4.61443,2620.3,2620.0,0.46849612]
[1730889500187,0.798,2620.3,2620.1,3.81657]
[1730889500393,1.348,2620.5,2620.0,4.28514612]
[1730889500674,0.798,2620.5,2620.3,7.63263]
[1730889500883,0.798,2620.8,2620.2,0.8024]
[1730889501088,1.25197544,2621.4,2620.2,0.8024]
[1730889501089,0.798,2621.3,2620.8,3.81555]
[1730889501251,0.798,2621.3,2620.4,3.81612]
[1730889501252,0.798,2621.3,2621.2,3.81504]
[1730889501451,3.81435,2621.7,2621.2,3.81504]
[1730889501662,0.798,2621.8,2620.9,0.8024]
[1730889501864,0.798,2621.8,2621.5,3.81449]
[1730889502098,0.798,2621.8,2621.4,3.8147]
[1730889502301,0.798,2621.8,2621.1,3.81511]
[1730889502484,3.81439,2621.7,2621.1,3.81511]
[1730889502687,4.657041,2621.7,2621.1,7.63022]
[1730889502901,4.657041,2621.7,2621.1,3.81511]
[1730889503484,0.842651,2621.7,2621.2,3.81496]
[1730889503995,0.55,2621.6,2621.2,3.81496]
[1730889504202,0.55,2621.7,2621.2,3.81496]
[1730889505478,0.55,2621.7,2621.3,3.81489]
[1730889505680,0.55,2621.7,2621.1,7.63016]
[1730889505989,4.36433,2621.7,2621.1,7.63016]
[1730889506301,4.36433,2621.7,2621.2,3.81502]
[1730889506464,0.798,2621.8,2621.5,3.81453]
[1730889506897,0.798,2621.8,2621.6,0.05650219]
[1730889508167,0.798,2621.8,2621.4,3.81475]
[1730889508511,0.798,2621.8,2621.5,3.87110566]
[1730889508666,0.798,2621.8,2621.5,0.05650566]
[1730889509097,4.61218,2621.8,2621.3,3.81481]
[1730889509299,4.61218,2621.8,2621.6,0.05647451]
[1730889509513,4.36434,2621.7,2621.2,3.81503]
[1730889510122,0.55,2621.7,2621.2,3.81503]
[1730889510412,0.55,2621.7,2621.4,3.81468]
[1730889511419,0.55,2621.7,2621.2,3.8149]
[1730889511578,0.55,2621.7,2621.2,7.62987]
[1730889511780,0.55,2621.7,2621.3,3.8148]
[1730889512320,0.55,2621.7,2621.4,0.0565566]
[1730889512634,0.55,2621.7,2621.2,7.62986]
[1730889512781,0.55,2621.7,2621.5,0.05652544]
[1730889512983,0.55,2621.7,2621.3,3.81489]
[1730889513606,11.18316711,2622.3,2621.3,3.81489]
[1730889513607,0.7751,2624.2,2623.8,3.81126]
[1730889513843,0.7751,2624.6,2623.8,3.8605284]
[1730889513998,0.7751,2624.6,2623.8,0.0492684]
[1730889514318,0.7751,2624.6,2623.5,3.81161]
[1730889514534,0.7751,2624.6,2623.8,0.0492684]
[1730889514816,0.7851,2624.6,2623.8,0.0492684]
[1730889515027,0.7851,2624.6,2623.5,3.81169]
[1730889515212,0.01,2624.4,2623.8,0.0492684]
[1730889515531,0.01,2624.4,2623.5,3.8117]
[1730889515694,0.01,2624.4,2623.8,0.0492684]
[1730889516192,0.01,2624.4,2623.5,3.8117]
[1730889516394,0.01,2624.4,2623.6,0.04933061]
[1730889516992,0.01,2624.4,2623.7,3.81136]
[1730889517332,0.7751,2624.6,2623.8,3.8605284]
[1730889522005,0.7851,2624.6,2623.8,0.0492684]
[1730889522189,0.7851,2624.6,2623.6,3.81142]
[1730889522389,0.7851,2624.6,2623.7,0.04929951]
[1730889522390,1.6038,2623.9,2623.7,0.04929951]
[1730889522618,1.6038,2623.9,2623.2,7.62411]
[1730889523024,1.6038,2623.9,2623.2,3.81204]
[1730889523341,1.6038,2623.9,2623.3,0.04942395]
[1730889523540,1.6038,2623.9,2623.5,3.81158]
[1730889524063,1.6038,2623.9,2623.6,0.04933061]
[1730889524916,1.6038,2623.9,2623.5,3.81168]
[1730889525122,1.6038,2623.9,2623.7,0.04830774]
[1730889525468,1.6038,2623.9,2623.8,0.04827664]
[1730889525741,1.6038,2623.9,2623.2,3.81209]
[1730889525949,1.6038,2623.9,2623.8,0.04827664]
[1730889526449,1.6038,2623.9,2623.3,3.81192]
[1730889526734,1.6038,2623.9,2623.8,0.04827664]
[1730889526934,1.6038,2623.9,2623.2,3.81201]
[1730889527141,1.6038,2623.9,2623.8,0.04827664]
[1730889527337,1.6038,2623.9,2623.2,3.81201]
[1730889527541,1.6038,2623.9,2623.8,0.04827664]
[1730889527707,2.146272,2623.9,2623.0,3.81233]
[1730889527919,2.156272,2623.9,2623.0,3.81233]
[1730889528120,2.156272,2623.9,2623.1,0.04849442]
[1730889529025,2.156272,2623.9,2623.1,3.86076442]
[1730889529231,3.8113,2623.8,2623.1,0.04849442]
[1730889529452,0.8305,2623.7,2622.8,3.81262]
[1730889529619,3.81165,2623.6,2623.2,0.0484633]
[1730889529813,3.81172,2623.5,2622.7,3.87002245]
[1730889530012,0.464222,2623.4,2622.8,0.04778948]
[1730889531061,0.464222,2623.4,2622.6,3.81298]
[1730889531062,0.464222,2623.4,2622.6,3.81292]
[1730889531530,0.464222,2623.4,2622.7,0.0462501]
[1730889532259,0.464222,2623.4,2622.7,3.8590601]
[1730889532560,0.464222,2623.4,2622.7,0.0462501]
[1730889532717,0.4286012,2623.3,2622.7,0.0462501]
[1730889533554,0.01,2623.1,2622.7,0.0462501]
[1730889533764,0.01,2623.1,2622.1,0.8208]
[1730889533765,7.62502,2623.0,2622.1,3.81371]
[1730889533927,0.8154,2622.9,2621.8,0.8208]
[1730889534260,5.391552,2622.9,2622.0,3.81379]
[1730889534475,5.391552,2622.9,2622.0,7.62758]
[1730889534756,3.81273,2622.8,2622.1,0.04658702]
[1730889535063,4.3521632,2622.7,2622.1,0.04658702]
[1730889535270,3.81323,2622.5,2621.6,3.81438]
[1730889535705,0.7558,2622.3,2621.7,0.04730805]
[1730889535998,0.7558,2622.0,2621.2,3.81495]
[1730889536203,0.456965,2621.9,2621.2,3.81495]
[1730889536491,0.01,2621.9,2621.3,0.04586087]
[1730889536801,0.01,2621.9,2621.2,3.81495]
[1730889536966,0.7558,2622.0,2621.2,3.81494]
[1730889537168,0.7558,2622.0,2621.4,3.81473]
[1730889537487,0.7558,2622.0,2621.5,0.04579855]
[1730889537696,0.7558,2622.0,2621.3,3.81485]
[1730889537856,0.7558,2622.0,2621.6,0.04576739]
[1730889538202,0.7558,2622.0,2621.3,7.62966]
[1730889538349,0.7558,2622.0,2621.7,3.86003624]
[1730889538691,0.7558,2622.0,2621.1,3.81512]
[1730889538692,0.7558,2622.0,2621.8,0.04570508]
[1730889538849,0.7558,2622.0,2621.6,7.62875]
[1730889539052,0.7558,2622.0,2621.9,0.04567393]
[1730889539265,0.7558,2622.0,2621.3,3.81481]
[1730889539465,0.456965,2621.9,2621.3,3.81481]
[1730889540066,0.456965,2621.9,2621.4,3.81474]
[1730889540263,0.7558,2622.0,2621.4,3.81474]
[1730889540504,0.7558,2622.0,2621.4,3.81475]
[1730889540712,0.7558,2622.0,2621.5,3.8146]
[1730889541081,0.7558,2622.0,2621.6,3.81445]
[1730889541508,3.81324,2622.5,2621.8,3.81405]
[1730889541509,0.7623,2622.5,2621.8,3.81405]
[1730889541668,0.457532,2622.4,2621.8,3.81405]
[1730889542207,0.457532,2622.4,2621.9,0.04616797]
[1730889542966,0.457532,2622.4,2621.8,3.81405]
[1730889543168,0.457532,2622.4,2622.0,0.04612496]
[1730889543412,4.270842,2622.4,2621.9,0.04615611]
[1730889543592,0.7623,2622.5,2622.1,0.04609382]
[1730889543916,0.7623,2622.5,2622.2,0.045994]
[1730889544098,0.7623,2622.5,2622.0,3.81387]
[1730889544265,0.7623,2622.5,2622.3,0.04598013]
[1730889544472,0.7623,2622.5,2621.6,3.81444]
[1730889544473,0.7623,2622.5,2622.1,3.81369]
[1730889544691,0.7623,2622.5,2622.4,0.04593318]
[1730889544886,0.7623,2622.5,2622.0,3.81388]
[1730889545104,0.7623,2622.5,2622.4,0.04593318]
[1730889545311,0.7623,2622.5,2622.1,3.81373]
[1730889545475,0.7623,2622.5,2622.4,0.04609128]
[1730889545679,0.7623,2622.5,2622.1,3.81373]
[1730889545876,0.7623,2622.5,2622.4,0.04609128]
[1730889546078,0.7623,2622.5,2622.1,3.81373]
[1730889546397,0.7623,2622.5,2622.4,0.04609128]
[1730889546593,0.7623,2622.5,2621.8,3.81405]
[1730889546811,0.457537,2622.4,2621.8,7.62815]
[1730889547017,0.457537,2622.4,2621.8,3.81405]
[1730889547429,3.81366,2622.2,2621.4,4.60608]
[1730889547630,3.81366,2622.2,2621.3,3.8148]